bitfinex/quotes_SOLUSD_20240816
["timestamp","ask_amount","ask_price","bid_price","bid_amount"]
[1723832442935,20.0,139.72,139.57,385.3]
[1723832443224,52.84876292,139.71,139.55,258.5]
[1723832443394,51.0589,139.71,139.57,20.0]
[1723832443587,20.0,139.7,139.55,278.5]
[1723832443793,20.0,139.7,139.55,258.5]
[1723832444195,1.78995623,139.69,139.55,258.5]
[1723832444437,7.9907,139.67,139.55,258.5]
[1723832444593,72.81744688,139.66,139.53,6.0269]
[1723832444789,27.81759731,139.66,139.48,25.0922]
[1723832445016,45.0,139.65,139.48,25.0922]
[1723832445240,26.0269,139.64,139.48,45.0922]
[1723832445411,26.0269,139.64,139.48,25.0922]
[1723832445611,45.0,139.63,139.48,25.0922]
[1723832445920,20.0,139.62,139.48,25.0922]
[1723832446412,20.0,139.62,139.5,7.168]
[1723832446603,20.0,139.62,139.48,17.9232]
[1723832446927,20.0,139.63,139.46,15.6169]
[1723832447116,20.0,139.63,139.46,22.7873]
[1723832447315,6.5172,139.61,139.41,17.9317]
[1723832447498,20.0,139.64,139.41,17.9317]
[1723832447499,6.5172,139.59,139.41,17.9317]
[1723832447695,66.79164556,139.58,139.41,17.9317]
[1723832447898,6.5172,139.57,139.41,17.9317]
[1723832448117,21.79171026,139.56,139.41,17.9317]
[1723832448320,6.5531,139.54,139.38,25.1108]
[1723832448600,20.0,139.53,139.44,27.171]
[1723832448794,20.0,139.53,139.46,27.17]
[1723832449023,6.5531,139.54,139.47,1.27046739]
[1723832449242,6.5531,139.54,139.45,37.9266]
[1723832449735,6.5531,139.54,139.46,52.1702]
[1723832450120,6.5531,139.54,139.47,28.72823562]
[1723832450319,6.5531,139.54,139.48,52.1693]
[1723832450515,6.5531,139.54,139.49,1.43274016]
[1723832450708,6.5531,139.54,139.48,45.0]
[1723832452004,1.79125569,139.68,139.48,45.0]
[1723832452211,6.0059,139.65,139.52,17.9178]
[1723832452519,6.0059,139.65,139.53,45.0]
[1723832453622,1.9638,139.64,139.53,45.0]
[1723832453823,46.9638,139.64,139.53,45.0]
[1723832454021,46.9638,139.64,139.53,46.43230363]
[1723832454224,20.0,139.63,139.53,46.43230363]
[1723832455113,20.0,139.63,139.54,1.43189305]
[1723832455930,20.0,139.63,139.53,45.0]
[1723832456417,20.0,139.63,139.54,1.43107223]
[1723832456619,20.0,139.63,139.55,1.43096968]
[1723832457038,20.0,139.63,139.53,45.0]
[1723832458446,20.0,139.63,139.54,1.43215242]
[1723832458618,20.0,139.63,139.55,1.43227026]
[1723832458823,20.0,139.63,139.53,45.0]
[1723832459128,6.3197,139.62,139.53,45.0]
[1723832459551,6.0973,139.6,139.46,265.0531]
[1723832459843,20.0,139.59,139.46,13.7235]
[1723832460521,20.0,139.59,139.46,6.5531]
[1723832460926,45.0,139.58,139.43,25.1015]
[1723832461237,6.6607,139.56,139.42,414.0621]
[1723832461544,1.9638,139.55,139.42,392.4721]
[1723832461752,66.9638,139.55,139.4,32.9825]
[1723832461951,21.9638,139.55,139.42,7.1725]
[1723832462118,21.9638,139.55,139.43,1.15361675]
[1723832462313,21.9638,139.55,139.41,7.173]
[1723832462518,21.9638,139.55,139.42,1.4334155]
[1723832462722,21.9638,139.55,139.43,1.43331269]
[1723832463531,21.9638,139.55,139.44,7.1713]
[1723832463722,21.9638,139.55,139.44,1.43309459]
[1723832464251,21.9638,139.55,139.43,45.0]
[1723832464451,21.9638,139.55,139.41,1.43329342]
[1723832464834,45.0,139.54,139.38,385.3]
[1723832465140,28.05452103,139.53,139.38,385.3]
[1723832465529,26.2624,139.53,139.39,20.0]
[1723832466147,26.2624,139.53,139.39,7.1737]
[1723832466336,26.2624,139.53,139.4,1.43350061]
[1723832466734,26.2624,139.53,139.44,7.1715]
[1723832466735,6.2624,139.53,139.44,7.1715]
[1723832467034,6.2624,139.53,139.45,45.0]
[1723832467245,6.2624,139.53,139.46,1.43317098]
[1723832467554,6.2248,139.6,139.47,20.12549]
[1723832467725,6.2248,139.6,139.49,7.1689]
[1723832467928,6.2248,139.6,139.49,1.43262673]
[1723832468159,6.2248,139.6,139.5,45.0]
[1723832469156,6.2248,139.6,139.49,1.43148548]
[1723832469363,20.0,139.59,139.48,45.0]
[1723832469745,6.0223,139.58,139.48,45.0]
[1723832470056,20.0,139.57,139.48,45.0]
[1723832470534,6.0223,139.58,139.49,1.07526685]
[1723832471107,6.0223,139.58,139.49,42.66526685]
[1723832471354,6.0223,139.58,139.51,25.1031]
[1723832471563,6.0223,139.58,139.53,7.1668]
[1723832471773,1.9638,139.66,139.55,20.0]
[1723832471774,6.5467,139.63,139.55,20.0]
[1723832471959,6.5467,139.63,139.57,7.1643]
[1723832472138,6.5467,139.66,139.58,8.23867351]
[1723832472339,6.5467,139.66,139.58,1.07457351]
[1723832472952,6.5467,139.66,139.59,0.12549]
[1723832473159,6.5467,139.66,139.6,1.07441955]
[1723832473472,6.5467,139.66,139.59,19.23450094]
[1723832473967,6.5467,139.66,139.6,45.0]
[1723832474178,6.5467,139.66,139.61,1.07446699]
[1723832474548,6.5467,139.66,139.6,45.0]
[1723832474969,6.5467,139.66,139.52,35.7445]
[1723832475154,6.5467,139.66,139.52,53.6626]
[1723832475450,6.5467,139.66,139.52,15.7445]
[1723832475658,20.0,139.65,139.52,15.7445]
[1723832476458,20.0,139.65,139.51,25.0867]
[1723832476651,20.0,139.65,139.5,643.8]
[1723832476858,45.0,139.64,139.5,650.9684]
[1723832477055,20.0,139.63,139.5,650.9684]
[1723832477476,20.0,139.63,139.51,0.58999173]
[1723832477674,20.0,139.63,139.52,0.59075871]
[1723832477847,20.0,139.65,139.52,18.50875871]
[1723832478052,20.0,139.65,139.53,8.47790591]
[1723832478366,20.0,139.65,139.53,1.31140591]
[1723832478566,20.0,139.65,139.5,643.8]
[1723832478879,8.1348,139.63,139.5,643.8]
[1723832479186,20.0,139.62,139.5,385.3]
[1723832479955,21.79088724,139.62,139.5,385.3]
[1723832480151,20.0,139.62,139.5,385.3]
[1723832480883,21.79096607,139.62,139.5,385.3]
[1723832481055,20.0,139.62,139.5,385.3]
[1723832481861,6.5671,139.6,139.5,385.3]
[1723832482061,20.0,139.59,139.45,258.5]
[1723832482457,20.0,139.59,139.45,265.6709]
[1723832482659,20.0,139.59,139.45,7.1709]
[1723832482891,20.0,139.59,139.44,40.116]
[1723832483058,8.2589,139.58,139.45,1.43299952]
[1723832483254,8.2589,139.58,139.43,20.0]
[1723832483255,6.6242,139.56,139.43,20.0]
[1723832483560,6.6242,139.56,139.4,643.8]
[1723832483561,20.0,139.55,139.42,7.1725]
[1723832483788,20.0,139.55,139.44,7.1715]
[1723832483972,20.0,139.55,139.45,20.0]
[1723832484159,6.6242,139.56,139.48,7.1693]
[1723832484488,6.6242,139.56,139.49,1.43062909]
[1723832484657,6.6242,139.56,139.48,17.9236]
[1723832484658,6.6242,139.56,139.48,1.43065001]
[1723832484864,6.6242,139.56,139.49,45.0]
[1723832485258,6.6242,139.56,139.49,46.43276161]
[1723832485766,20.0,139.55,139.49,45.0]
[1723832486083,6.6242,139.56,139.49,45.0]
[1723832486291,6.6242,139.56,139.5,0.38967425]
[1723832486462,6.6242,139.56,139.5,1.43261829]
[1723832486666,6.6242,139.56,139.5,45.0]
[1723832487697,20.0,139.55,139.5,45.0]
[1723832488883,20.0,139.55,139.46,385.3]
[1723832489203,20.0,139.55,139.47,45.0]
[1723832489377,20.0,139.55,139.47,46.43311598]
[1723832489567,20.0,139.55,139.47,45.0]
[1723832490191,20.0,139.55,139.48,1.43304709]
[1723832490394,20.0,139.55,139.47,45.0]
[1723832490595,20.0,139.55,139.48,1.43311611]
[1723832491166,20.0,139.55,139.42,15.6562]
[1723832491387,20.0,139.55,139.43,1.43132763]
[1723832491778,20.0,139.55,139.42,15.6562]
[1723832492285,20.0,139.55,139.43,1.43270182]
[1723832492698,20.0,139.55,139.41,1.43346834]
[1723832492873,1.9638,139.54,139.41,1.43346834]
[1723832493072,1.9638,139.54,139.4,258.5]
[1723832493986,1.9638,139.54,139.41,20.0]
[1723832494201,1.9638,139.54,139.42,7.29799]
[1723832494411,1.9638,139.54,139.43,52.29749]
[1723832494612,1.9638,139.54,139.44,1.11450352]
[1723832494803,1.9638,139.54,139.43,45.0]
[1723832494994,1.9638,139.54,139.42,45.12549]
[1723832495197,1.9638,139.54,139.43,8.60377952]
[1723832495510,1.9638,139.54,139.44,45.0]
[1723832495715,1.9638,139.54,139.45,1.43314957]
[1723832495917,1.9638,139.54,139.46,1.4330468]
[1723832496499,1.9638,139.54,139.44,46.4330468]
[1723832496900,6.6242,139.56,139.46,41.59]
[1723832497098,6.6242,139.56,139.48,7.169]
[1723832497434,6.6242,139.56,139.5,41.59]
[1723832497726,6.3607,139.6,139.51,64.35120696]
[1723832498025,6.3607,139.6,139.51,46.43230696]
[1723832498210,6.3607,139.6,139.52,45.0]
[1723832498407,6.3607,139.6,139.5,45.0]
[1723832499025,6.3607,139.6,139.51,0.41921554]
[1723832499530,6.3607,139.6,139.49,45.0]
[1723832499731,6.3607,139.6,139.52,7.1673]
[1723832500031,6.3607,139.6,139.53,45.0]
[1723832500606,6.3607,139.6,139.53,52.1667]
[1723832500941,6.3607,139.6,139.53,45.0]
[1723832501908,20.0,139.59,139.53,45.0]
[1723832503413,42.78308893,139.72,139.57,7.1645]
[1723832503414,6.0592,139.64,139.57,7.1645]
[1723832503725,6.0592,139.64,139.58,46.46858281]
[1723832503920,6.0592,139.64,139.58,53.63288281]
[1723832504601,6.0369,139.68,139.61,7.1623]
[1723832504931,6.0369,139.68,139.62,1.38210379]
[1723832505627,6.0369,139.68,139.62,46.38210379]
[1723832506310,6.0369,139.68,139.62,53.54420379]
[1723832506804,6.0369,139.68,139.62,46.38210379]
[1723832507438,6.0369,139.68,139.62,1.38210379]
[1723832508335,6.0369,139.68,139.63,1.40889169]
[1723832509426,6.0369,139.68,139.62,1.40903298]
[1723832510041,6.0369,139.68,139.61,66.4091339]
[1723832510205,6.0369,139.68,139.62,0.25098]
[1723832513211,6.0369,139.68,139.63,7.1617]
[1723832513414,6.0369,139.68,139.64,45.0]
[1723832513817,6.0369,139.68,139.65,1.43077978]
[1723832514134,6.0369,139.68,139.64,45.0]
[1723832514309,6.0369,139.68,139.63,45.0]
[1723832514509,6.0369,139.68,139.63,51.0369]
[1723832514710,6.0369,139.68,139.64,1.43083495]
[1723832515445,6.0369,139.68,139.65,1.43073249]
[1723832515915,6.0369,139.68,139.63,51.0369]
[1723832516252,6.0369,139.68,139.64,1.40819433]
[1723832516427,6.3689,139.77,139.65,1.65907349]
[1723832516607,6.3689,139.77,139.68,20.0]
[1723832516807,6.3689,139.77,139.69,1.65867028]
[1723832517024,6.3689,139.77,139.7,1.40748874]
[1723832518041,6.3689,139.77,139.66,1.4083867]
[1723832518251,6.3689,139.77,139.63,21.3602]
[1723832518415,6.1273,139.75,139.61,385.3]
[1723832518756,20.0,139.74,139.61,391.6689]
[1723832518925,65.0,139.74,139.61,385.3]
[1723832519131,6.1273,139.73,139.58,17.91]
[1723832519315,6.1286,139.71,139.55,403.2141]
[1723832519522,20.0,139.7,139.55,403.2141]
[1723832520044,20.0,139.7,139.56,20.0]
[1723832520351,20.0,139.7,139.61,7.1627]
[1723832520640,20.0,139.7,139.6,20.0]
[1723832520835,20.0,139.7,139.62,45.0]
[1723832521229,20.0,139.7,139.59,0.12549]
[1723832521426,20.0,139.7,139.59,0.71435688]
[1723832521743,20.0,139.7,139.56,7.184]
[1723832521926,20.0,139.7,139.55,412.484]
[1723832522125,22.80218565,139.7,139.55,403.2138]
[1723832522329,1.9638,139.69,139.55,410.3796]
[1723832522526,1.9638,139.69,139.56,0.50618979]
[1723832522925,1.9638,139.69,139.57,0.50685758]
[1723832523131,1.9638,139.69,139.58,0.50713182]
[1723832523319,6.3237,139.68,139.55,385.3]
[1723832523634,6.3237,139.68,139.51,27.1678]
[1723832523635,20.0,139.67,139.51,27.1678]
[1723832523840,20.0,139.67,139.5,29.970485]
[1723832523841,6.4301,139.66,139.5,29.970485]
[1723832524021,20.0,139.67,139.49,704.5501]
[1723832524022,6.4301,139.64,139.49,15.6446]
[1723832524226,1.9638,139.62,139.47,20.0]
[1723832524425,1.9638,139.62,139.48,1.4326648]
[1723832524642,1.9638,139.62,139.49,1.43252562]
[1723832526475,6.6023,139.61,139.46,17.9255]
[1723832526628,20.0,139.6,139.46,17.9255]
[1723832527162,20.0,139.6,139.49,20.0]
[1723832527459,6.6023,139.61,139.5,7.184]
[1723832527638,6.6023,139.61,139.51,0.12549]
[1723832527828,6.6023,139.61,139.51,1.55796244]
[1723832528536,6.6023,139.61,139.51,46.55796244]
[1723832529519,6.6023,139.61,139.53,7.1665]
[1723832529723,6.6023,139.61,139.54,45.0]
[1723832530253,6.6023,139.61,139.55,19.34648809]
[1723832530453,6.6023,139.61,139.56,45.0]
[1723832530646,6.3221,139.66,139.57,1.43207316]
[1723832530955,6.3221,139.66,139.58,1.55737483]
[1723832531125,6.3221,139.66,139.58,46.55737483]
[1723832531326,6.3221,139.66,139.58,53.72157483]
[1723832531527,6.3221,139.66,139.58,46.55737483]
[1723832531837,6.3221,139.66,139.58,45.12549]
[1723832532039,6.3221,139.66,139.58,0.12549]
[1723832532239,6.3221,139.66,139.59,7.1634]
[1723832532539,6.1864,139.72,139.61,7.1627]
[1723832532740,6.1864,139.72,139.6,46.67931755]
[1723832532741,6.1864,139.72,139.6,25.19629]
[1723832533047,6.1864,139.72,139.61,45.0]
[1723832533941,6.1864,139.72,139.6,8.5661]
[1723832534141,20.0,139.71,139.59,385.3]
[1723832535655,52.96807176,139.7,139.54,15.4883]
[1723832535854,20.0,139.69,139.54,57.0183]
[1723832536160,20.0,139.69,139.55,1.43180359]
[1723832536543,20.0,139.69,139.54,35.4883]
[1723832536544,20.0,139.69,139.54,29.8383]
[1723832536758,20.0,139.69,139.52,20.0]
[1723832536957,51.1701,139.68,139.52,20.0]
[1723832537138,20.0,139.67,139.52,45.0853]
[1723832537344,51.1701,139.68,139.57,25.0768]
[1723832537546,6.1701,139.68,139.57,25.0768]
[1723832537875,6.1701,139.68,139.58,1.43177992]
[1723832538072,6.1701,139.68,139.58,8.59577992]
[1723832538451,6.1701,139.68,139.59,45.0]
[1723832538648,6.1701,139.68,139.6,1.43173998]
[1723832538844,6.1701,139.68,139.58,46.35090292]
[1723832539356,20.0,139.67,139.58,45.0]
[1723832539556,20.0,139.67,139.59,1.43189997]
[1723832539771,20.0,139.67,139.58,45.0]
[1723832540771,20.0,139.67,139.55,0.56927226]
[1723832540949,20.0,139.67,139.52,27.1673]
[1723832541147,20.0,139.67,139.53,1.43121141]
[1723832541348,20.0,139.67,139.52,20.0]
[1723832541583,20.0,139.67,139.52,7.1672]
[1723832541761,6.6319,139.65,139.51,643.8]
[1723832542084,6.6319,139.65,139.48,45.34967449]
[1723832542085,6.6319,139.63,139.48,17.923]
[1723832542246,20.0,139.62,139.5,17.9206]
[1723832542443,20.0,139.62,139.51,0.60296735]
[1723832542881,20.0,139.62,139.47,17.9242]
[1723832543183,20.0,139.62,139.49,7.1689]
[1723832543366,20.0,139.62,139.5,1.4305538]
[1723832543882,22.79327514,139.62,139.5,1.4305538]
[1723832544383,6.6319,139.63,139.55,7.1657]
[1723832544567,6.6319,139.63,139.56,45.0]
[1723832544760,6.6319,139.63,139.57,1.42964038]
[1723832545656,20.0,139.62,139.57,1.42964038]
[1723832545856,20.0,139.62,139.56,45.0]
[1723832547058,20.0,139.62,139.57,1.43233781]
[1723832547676,20.0,139.62,139.57,22.96233781]
[1723832547874,6.6319,139.63,139.58,45.0]
[1723832548073,6.6319,139.63,139.59,1.43198433]
[1723832548598,6.6319,139.63,139.56,45.0]
[1723832549089,6.6319,139.63,139.55,73.6958]
[1723832549289,6.6319,139.63,139.56,0.25098]
[1723832549463,6.6319,139.63,139.56,1.12629266]
[1723832549658,20.0,139.62,139.56,1.12629266]
[1723832549859,20.0,139.62,139.56,29.82149266]
[1723832550080,20.0,139.62,139.57,45.0]
[1723832550451,20.0,139.62,139.56,45.0]
[1723832551365,20.0,139.62,139.56,66.53]
[1723832551992,6.6319,139.63,139.56,45.0]
[1723832552192,20.0,139.62,139.56,45.0]
[1723832552481,20.0,139.62,139.55,45.0]
[1723832553864,6.6319,139.63,139.55,45.0]
[1723832553865,6.0715,139.65,139.57,41.53]
[1723832554087,6.0715,139.65,139.59,7.1637]
[1723832554393,1.9638,139.69,139.62,28.6919]
[1723832554394,6.0715,139.69,139.62,28.6919]
[1723832554602,6.0715,139.69,139.63,46.5567799]
[1723832554789,6.0715,139.69,139.63,75.2484799]
[1723832555095,6.0715,139.69,139.63,75.2707799]
[1723832556964,6.0715,139.69,139.64,17.9026]
[1723832557187,6.0756,139.76,139.65,102.55636048]
[1723832557396,6.0756,139.81,139.69,28.6886]
[1723832557690,6.0756,139.81,139.7,46.55595554]
[1723832557893,3.74149074,139.8,139.71,1.43036315]
[1723832558595,3.74149074,139.8,139.71,8.58796315]
[1723832558758,0.8552964,139.8,139.74,7.1557]
[1723832558964,0.8552964,139.8,139.73,37.8908]
[1723832558965,0.8552964,139.8,139.75,1.42995374]
[1723832559478,0.8552964,139.8,139.72,45.0]
[1723832559864,0.8552964,139.8,139.71,1.43053984]
[1723832560065,0.8552964,139.8,139.7,45.0]
[1723832560359,20.8552964,139.8,139.7,45.0]
[1723832560576,3.86655984,139.8,139.7,45.0]
[1723832560864,3.86655984,139.8,139.64,45.064]
[1723832560865,6.298,139.79,139.64,45.064]
[1723832561093,6.298,139.79,139.65,1.18653705]
[1723832561296,20.0,139.78,139.65,1.18653705]
[1723832561681,20.0,139.78,139.68,7.1592]
[1723832561883,20.0,139.78,139.68,8.38459339]
[1723832562084,20.0,139.78,139.68,1.22549339]
[1723832562279,20.0,139.78,139.67,7.1593]
[1723832562480,6.134,139.76,139.64,1.43033783]
[1723832562694,6.134,139.76,139.65,1.43071684]
[1723832562695,20.0,139.75,139.65,1.43071684]
[1723832562882,20.0,139.75,139.62,15.1279]
[1723832563288,20.0,139.75,139.62,42.3119]
[1723832563483,20.0,139.75,139.63,1.4295763]
[1723832564299,6.2469,139.74,139.63,45.0]
[1723832564479,6.2469,139.72,139.63,45.0]
[1723832564681,20.0,139.71,139.58,16.4356]
[1723832565480,1.9638,139.7,139.57,13.2363]
[1723832565675,1.9638,139.7,139.58,45.12549]
[1723832565898,1.9638,139.7,139.58,52.28969]
[1723832566181,1.9638,139.7,139.59,1.43168417]
[1723832566697,1.9638,139.7,139.6,0.12549]
[1723832566902,1.9638,139.7,139.6,45.0]
[1723832567279,1.9638,139.7,139.61,7.28789]
[1723832567481,1.9638,139.7,139.62,45.0]
[1723832567710,6.2469,139.72,139.63,1.43146586]
[1723832567899,6.2469,139.72,139.62,1.43131606]
[1723832568095,6.2469,139.72,139.61,0.12549]
[1723832568281,6.2469,139.72,139.61,1.6805165]
[1723832568778,6.2469,139.72,139.62,45.0669]
[1723832568975,20.0,139.71,139.63,46.42933173]
[1723832569175,20.0,139.71,139.59,17.9093]
[1723832569381,20.0,139.71,139.59,19.3408618]
[1723832569585,20.0,139.71,139.6,7.1631]
[1723832569786,20.0,139.71,139.61,1.43135671]
[1723832569982,20.0,139.71,139.58,14.3482]
[1723832570186,20.0,139.71,139.59,20.68781749]
[1723832570406,20.0,139.71,139.62,7.1618]
[1723832570616,20.0,139.71,139.63,0.68839684]
[1723832570824,20.0,139.71,139.64,1.43140196]
[1723832570993,6.2469,139.72,139.65,1.43139577]
[1723832572021,6.2469,139.72,139.6,7.184]
[1723832572209,20.0,139.71,139.6,7.86911436]
[1723832572415,20.0,139.71,139.6,0.68511436]
[1723832572909,20.0,139.71,139.6,1.43155339]
[1723832573426,20.0,139.71,139.58,25.094]
[1723832573725,20.0,139.71,139.6,7.1628]
[1723832574025,20.0,139.71,139.61,1.55695532]
[1723832574202,20.0,139.71,139.61,46.55695532]
[1723832575919,20.0,139.71,139.57,6.0715]
[1723832576096,6.4793,139.69,139.57,6.0715]
[1723832576294,20.0,139.68,139.57,6.0715]
[1723832576817,1.9638,139.67,139.57,6.0715]
[1723832577002,6.4793,139.66,139.54,385.3]
[1723832577321,20.0,139.65,139.54,385.3]
[1723832577528,20.0,139.65,139.53,29.5126]
[1723832577705,20.0,139.65,139.53,22.3458]
[1723832578115,20.0,139.65,139.54,1.55763326]
[1723832578393,20.0,139.65,139.54,7.29159]
[1723832578600,20.0,139.65,139.55,25.0804]
[1723832579125,20.0,139.65,139.56,8.72064791]
[1723832579304,20.0,139.65,139.56,1.55544791]
[1723832579509,20.0,139.65,139.57,7.29029]
[1723832579827,20.0,139.65,139.58,46.42975965]
[1723832579995,20.0,139.65,139.58,1.42975965]
[1723832580418,6.4793,139.66,139.61,7.1627]
[1723832580662,6.4793,139.66,139.62,46.42941704]
[1723832580803,6.4793,139.66,139.62,45.0]
[1723832581316,6.4793,139.66,139.62,46.43093976]
[1723832581518,8.5371,139.78,139.62,53.59273976]
[1723832582000,8.5371,139.78,139.63,7.1617]
[1723832582207,8.5371,139.78,139.64,46.43073481]
[1723832582421,11.52687561,139.78,139.65,1.43063235]
[1723832582730,11.52687561,139.78,139.66,0.12549]
[1723832582910,11.52687561,139.78,139.67,1.43042749]
[1723832583108,8.5371,139.78,139.68,1.43071617]
[1723832583322,8.5371,139.78,139.68,15.77381617]
[1723832583522,8.5371,139.78,139.69,45.0]
[1723832583727,8.5371,139.78,139.7,1.43051134]
[1723832583914,8.5371,139.78,139.71,1.43040894]
[1723832584406,8.5371,139.78,139.69,45.0]
[1723832584803,20.0,139.77,139.69,45.0]
[1723832585007,20.0,139.77,139.7,0.77311884]
[1723832585226,20.0,139.77,139.71,0.7730635]
[1723832585739,20.0,139.77,139.69,46.43087442]
[1723832586116,20.0,139.77,139.69,45.0]
[1723832586914,20.0,139.77,139.68,45.0]
[1723832587217,6.5733,139.78,139.69,0.12549]
[1723832587821,6.5733,139.78,139.68,45.0]
[1723832588342,20.0,139.77,139.68,45.0]
[1723832589004,6.5179,139.76,139.64,385.3]
[1723832589209,20.0,139.75,139.65,20.0]
[1723832589438,20.0,139.75,139.66,7.1602]
[1723832589746,20.0,139.75,139.67,1.42973582]
[1723832589951,20.0,139.75,139.66,7.1602]
[1723832590151,20.0,139.75,139.65,7.1606]
[1723832590445,20.0,139.75,139.66,45.12549]
[1723832590857,20.0,139.75,139.62,15.9841]
[1723832591017,20.0,139.75,139.62,23.1681]
[1723832591217,20.0,139.75,139.63,28.59000501]
[1723832591550,20.0,139.75,139.63,27.1617]
[1723832591738,20.0,139.75,139.62,30.3303]
[1723832591928,20.0,139.75,139.64,7.1611]
[1723832592135,20.0,139.75,139.65,52.41148]
[1723832592650,20.0,139.75,139.65,45.12549]
[1723832593221,20.0,139.75,139.65,53.71728815]
[1723832593423,20.0,139.75,139.66,0.12549]
[1723832594047,20.0,139.75,139.66,8.71641631]
[1723832594225,20.0,139.75,139.67,45.12549]
[1723832594426,20.0,139.75,139.68,1.43062143]
[1723832595043,20.0,139.75,139.63,1.43103647]
[1723832595358,8.3878,139.74,139.6,47.1629]
[1723832595524,20.0,139.73,139.6,27.1629]
[1723832595730,20.0,139.73,139.61,8.59400816]
[1723832596153,20.0,139.73,139.59,20.0]
[1723832596355,20.0,139.73,139.62,0.72221907]
[1723832596520,20.0,139.73,139.62,1.43123089]
[1723832596724,20.0,139.73,139.61,1.43129142]
[1723832597260,20.0,139.73,139.61,8.59399142]
[1723832597560,20.0,139.73,139.61,1.43129142]
[1723832597728,20.0,139.73,139.62,45.0]
[1723832598167,20.0,139.73,139.61,46.43140778]
[1723832598655,6.2439,139.72,139.61,45.0]
[1723832598853,20.0,139.71,139.62,1.43156628]
[1723832599465,20.0,139.71,139.59,1.43156691]
[1723832599673,20.0,139.71,139.59,8.59526691]
[1723832599836,20.0,139.71,139.58,7.184]
[1723832600166,20.0,139.71,139.57,668.8757]
[1723832600167,6.0229,139.7,139.57,668.8757]
[1723832600347,20.0,139.69,139.57,668.8757]
[1723832600743,20.0,139.69,139.58,45.0]
[1723832601762,20.0,139.69,139.57,410.3757]
[1723832601965,20.0,139.69,139.59,37.909]
[1723832602465,20.0,139.69,139.59,45.0724]
[1723832602776,20.0,139.69,139.6,1.43161744]
[1723832602959,20.0,139.69,139.6,53.61561744]
[1723832603458,6.0229,139.7,139.64,7.1611]
[1723832603777,6.0229,139.7,139.65,46.43114216]
[1723832604442,6.0229,139.7,139.65,53.59184216]
[1723832604641,6.0229,139.7,139.65,105.86244216]
[1723832604855,6.042,139.74,139.66,7.41108]
[1723832605058,6.042,139.74,139.67,46.43086749]
[1723832605268,6.042,139.74,139.68,1.43076505]
[1723832606167,6.042,139.74,139.67,53.61480431]
[1723832606371,6.042,139.74,139.68,1.43076458]
[1723832607279,6.042,139.74,139.67,45.0]
[1723832607478,6.042,139.74,139.68,6.042]
[1723832607681,6.042,139.74,139.65,27.184]
[1723832607860,6.042,139.74,139.65,14.3446]
[1723832608193,6.042,139.74,139.66,6.042]
[1723832609101,20.0,139.73,139.64,17.9026]
[1723832609981,20.0,139.73,139.63,41.9177]
[1723832610171,20.0,139.73,139.63,6.042]
[1723832610376,20.0,139.73,139.58,25.3508202]
[1723832610580,20.0,139.73,139.59,28.59525404]
[1723832610777,20.0,139.73,139.6,7.1633]
[1723832611194,1.9638,139.71,139.58,26.78227048]
[1723832611362,21.9638,139.71,139.58,17.9099]
[1723832611758,21.9638,139.71,139.57,37.6615]
[1723832612072,21.9638,139.71,139.58,0.65249309]